bitfinex/quotes_ETHUSD_20251126
["timestamp","ask_amount","ask_price","bid_price","bid_amount"]
[1764146128332,3.41869833,2925.1,2924.8,0.4683]
[1764146128627,0.405504,2925.0,2924.8,0.4683]
[1764146128820,0.405504,2925.0,2924.8,0.9297]
[1764146129117,0.405504,2925.0,2924.9,0.4683]
[1764146129323,7.24311082,2925.0,2924.5,0.4614]
[1764146129687,4.39360329,2925.0,2924.3,0.6448]
[1764146129887,7.8124067,2925.0,2924.3,0.6448]
[1764146130136,0.56929588,2925.0,2924.9,0.4683]
[1764146130412,6.8364382,2925.5,2924.9,0.4683]
[1764146130626,1.03689417,2925.4,2924.9,0.4683]
[1764146130801,0.31382439,2925.3,2924.9,0.4683]
[1764146131198,0.405504,2925.2,2924.9,0.9297]
[1764146131397,3.41868654,2925.1,2924.9,0.9297]
[1764146131590,3.41868654,2925.1,2924.9,0.4683]
[1764146131826,0.405504,2925.1,2925.0,0.9297]
[1764146132393,0.71983811,2925.1,2925.0,0.9297]
[1764146132707,1.44347369,2925.1,2925.0,0.9297]
[1764146134732,0.90161922,2925.7,2925.0,0.9297]
[1764146134900,0.53628692,2926.3,2925.8,0.4683]
[1764146134901,1.43790614,2926.3,2925.8,0.4683]
[1764146135097,3.41721547,2926.4,2925.5,0.1834]
[1764146135098,1.04024959,2926.2,2925.5,0.1834]
[1764146135299,1.04024959,2926.1,2925.6,0.4614]
[1764146135616,0.90161922,2926.5,2926.4,0.4683]
[1764146135818,1.04050443,2926.5,2926.4,0.4683]
[1764146136005,0.314922,2926.5,2926.4,0.9297]
[1764146136329,0.002,2926.6,2926.4,0.9297]
[1764146136530,0.002,2926.6,2926.5,0.9297]
[1764146142812,0.002,2926.6,2925.5,3.60158293]
[1764146142813,0.405504,2926.5,2925.5,3.60158293]
[1764146143124,0.31473942,2926.4,2925.8,0.4614]
[1764146143443,0.002,2926.6,2925.8,0.4614]
[1764146143614,1.04216353,2926.6,2925.8,0.4614]
[1764146143948,1.04016353,2926.5,2925.8,0.4614]
[1764146144250,3.41728462,2926.3,2925.8,0.4614]
[1764146144751,6.83410216,2926.5,2926.2,0.4838]
[1764146144914,0.31468775,2926.4,2926.2,0.4838]
[1764146145825,0.31468775,2926.4,2926.3,0.943]
[1764146146039,0.002,2926.6,2926.3,0.943]
[1764146146338,0.002,2926.6,2926.5,0.4838]
[1764146146542,0.002,2926.6,2926.5,0.943]
[1764146153030,0.002,2926.6,2926.5,0.4838]
[1764146153473,0.002,2926.6,2926.5,0.943]
[1764146164793,0.31780621,2926.6,2926.5,0.943]
[1764146165370,0.31780621,2926.6,2926.5,0.4687]
[1764146165989,0.31780621,2926.6,2925.8,2.73]
[1764146165990,0.39190621,2926.6,2925.8,2.73]
[1764146166189,0.31580621,2926.5,2926.0,0.4935]
[1764146166393,0.405504,2926.3,2925.4,1.21909411]
[1764146166598,3.41763499,2926.0,2925.2,0.1943]
[1764146166763,1.45007014,2925.9,2925.2,0.1943]
[1764146166966,1.04456614,2925.8,2925.1,0.4935]
[1764146167167,0.31580621,2925.7,2925.1,0.6878]
[1764146167474,0.31580621,2925.6,2925.1,0.6878]
[1764146167685,0.72875993,2925.8,2925.1,0.6878]
[1764146168160,1.052904,2925.9,2925.1,0.6878]
[1764146168588,3.41786861,2925.8,2925.1,0.6878]
[1764146168802,3.41786861,2925.8,2925.2,0.4935]
[1764146169166,0.405504,2926.1,2925.7,0.4687]
[1764146169365,0.405504,2926.1,2925.8,0.4687]
[1764146169560,1.13279946,2926.1,2925.8,0.4687]
[1764146169769,0.72729546,2926.1,2925.8,0.4687]
[1764146170164,6.83456924,2926.3,2925.8,0.4687]
[1764146170372,1.1326477,2926.2,2925.8,0.4687]
[1764146171075,3.41751819,2926.1,2925.8,0.4687]
[1764146171292,6.83503638,2926.1,2925.5,0.4935]
[1764146174019,3.41751819,2926.1,2925.5,0.4935]
[1764146174227,6.83503638,2926.1,2925.5,0.4935]
[1764146174728,0.405504,2926.0,2925.1,0.1943]
[1764146175031,0.405504,2926.0,2925.2,0.4622]
[1764146175393,3.4177518,2925.9,2925.2,3.88075464]
[1764146175594,3.4177518,2925.9,2925.1,0.1943]
[1764146175595,0.405504,2925.8,2925.1,0.1943]
[1764146176101,0.405504,2925.8,2925.1,0.6565]
[1764146176301,0.893304,2925.8,2925.1,0.6565]
[1764146177326,3.82348365,2925.8,2925.2,0.4622]
[1764146177527,7.2414633,2925.8,2925.2,0.4622]
[1764146177729,7.2414633,2925.8,2925.1,0.1943]
[1764146178523,7.2414633,2925.8,2925.1,0.6565]
[1764146178724,7.7292633,2925.8,2925.1,0.6565]
[1764146179134,7.7292633,2925.8,2925.1,0.1943]
[1764146179432,7.2414633,2925.8,2925.1,0.6565]
[1764146180139,3.82348365,2925.8,2925.2,0.4622]
[1764146180511,7.2414633,2925.8,2925.2,0.4622]
[1764146181115,0.0615,2925.3,2925.0,0.001]
[1764146181640,3.48000038,2925.3,2925.0,0.001]
[1764146181947,0.405504,2925.8,2925.2,0.4906]
[1764146182255,7.24133788,2925.8,2925.4,0.4906]
[1764146182602,0.4868,2925.5,2925.1,0.6443]
[1764146183522,3.41833595,2925.4,2925.1,0.6443]
[1764146184014,3.41833595,2925.4,2925.1,0.1821]
[1764146184342,0.405504,2925.6,2925.1,0.6443]
[1764146184856,0.405504,2925.6,2925.1,0.1821]
[1764146185142,0.893304,2925.6,2925.1,0.1821]
[1764146186336,3.4182191,2925.5,2925.1,0.1821]
[1764146186513,3.4182191,2925.5,2925.1,0.6443]
[1764146186712,3.8237231,2925.5,2925.4,0.4906]
[1764146186918,3.8237231,2925.5,2925.2,0.4622]
[1764146187529,7.2419422,2925.5,2925.1,0.1821]
[1764146187829,3.8237231,2925.5,2925.1,0.1821]
[1764146189258,0.405504,2925.4,2925.0,0.001]
[1764146189467,0.623504,2925.4,2925.0,0.001]
[1764146189649,0.623504,2925.4,2925.0,0.4632]
[1764146190026,0.623504,2925.4,2925.0,0.001]
[1764146190222,0.4868,2925.1,2925.0,0.001]
[1764146190833,0.892304,2925.1,2925.0,0.001]
[1764146191237,4.31099054,2925.1,2925.0,0.001]
[1764146192427,4.37279054,2925.1,2925.0,0.001]
[1764146192849,4.6881578,2925.1,2925.0,0.001]
[1764146193456,4.6255578,2925.1,2925.0,0.001]
[1764146193762,4.1395578,2925.1,2925.0,0.4916]
[1764146195435,0.72087126,2925.1,2925.0,0.9538]
[1764146195758,4.3575578,2925.1,2925.0,0.9538]
[1764146196060,4.3575578,2925.1,2925.0,0.001]
[1764146196422,4.41952594,2925.1,2925.0,0.001]
[1764146197334,4.90232594,2925.1,2925.0,0.001]
[1764146197568,4.41952594,2925.1,2925.0,0.001]
[1764146198170,4.90232594,2925.1,2925.0,0.001]
[1764146198475,6.92447345,2925.1,2925.0,0.001]
[1764146199177,13.86105045,2925.1,2925.0,0.001]
[1764146199665,7.832967,2925.1,2925.0,0.001]
[1764146200055,6.92447345,2925.1,2925.0,0.001]
[1764146200444,6.22367345,2925.1,2925.0,0.001]
[1764146200649,6.44167345,2925.1,2925.0,0.001]
[1764146201191,11.170544,2925.1,2925.0,0.001]
[1764146202660,10.26205045,2925.1,2925.0,0.001]
[1764146202865,11.170544,2925.1,2925.0,0.001]
[1764146203395,9.760352,2925.1,2925.0,0.001]
[1764146203561,9.978352,2925.1,2925.0,0.001]
[1764146206469,9.06985845,2925.1,2925.0,0.001]
[1764146206681,14.43878685,2925.1,2925.0,0.001]
[1764146207455,9.60893765,2925.1,2925.0,0.001]
[1764146207656,12.29340185,2925.1,2925.0,0.001]
[1764146208484,15.63097885,2925.1,2925.0,0.001]
[1764146208807,13.61214943,2925.1,2925.0,0.001]
[1764146209153,14.52064298,2925.1,2925.0,0.001]
[1764146209709,18.11964298,2925.1,2925.0,0.001]
[1764146209905,14.52064298,2925.1,2925.0,0.001]
[1764146212468,9.79177243,2925.1,2925.0,0.001]
[1764146212673,13.61214943,2925.1,2925.0,0.001]
[1764146213109,13.39414943,2925.1,2925.0,0.001]
[1764146213321,13.61214943,2925.1,2925.0,0.001]
[1764146214186,14.52064298,2925.1,2925.0,0.001]
[1764146216409,14.52164298,2925.1,2925.0,0.001]
[1764146216777,18.12064298,2925.1,2925.0,0.001]
[1764146216977,0.405504,2924.6,2924.1,0.1859]
[1764146217204,0.5327354,2924.5,2924.4,0.001]
[1764146217632,0.5950354,2924.5,2924.4,0.001]
[1764146218206,10.28022941,2924.5,2924.4,0.001]
[1764146218404,9.66485034,2924.5,2924.4,0.001]
[1764146218621,9.44685034,2924.5,2924.4,0.001]
[1764146218827,9.66485034,2924.5,2924.4,0.001]
[1764146219025,10.13685434,2924.5,2924.4,0.001]
[1764146220243,9.22807793,2924.5,2924.4,0.001]
[1764146220446,10.13719559,2924.5,2924.4,0.001]
[1764146221934,10.13719559,2924.5,2924.4,0.9356]
[1764146221935,5.81147895,2924.5,2924.4,0.9356]
[1764146222159,5.81147895,2924.5,2924.4,0.4852]
[1764146224271,5.90157895,2924.5,2924.4,0.001]
[1764146225282,5.59347895,2924.5,2924.4,0.4942]
[1764146225454,5.81147895,2924.5,2924.4,0.4942]
[1764146225858,5.81147895,2924.5,2924.4,0.001]
[1764146226374,10.55769559,2924.5,2924.4,0.001]
[1764146226772,6.72059661,2924.5,2924.4,0.9709]
[1764146226973,6.72059661,2924.5,2924.4,0.4942]
[1764146227170,7.67283756,2924.5,2924.4,0.4942]
[1764146227374,6.72059661,2924.5,2924.4,0.4942]
[1764146228556,9.40539599,2924.5,2924.4,0.4942]
[1764146229474,9.40539599,2924.5,2924.4,0.9709]
[1764146230477,9.18739599,2924.5,2924.4,0.9709]
[1764146230659,5.81047895,2924.5,2924.4,0.9709]
[1764146230852,5.81047895,2924.5,2924.4,0.4942]
[1764146233878,5.81047895,2924.5,2924.4,0.9709]
[1764146234650,6.83854339,2924.5,2924.4,0.9709]
[1764146235379,6.83854339,2924.5,2924.4,0.4942]
[1764146236044,6.83854339,2924.5,2924.4,0.9564]
[1764146236577,6.83854339,2924.5,2924.4,0.4942]
[1764146238667,5.81047895,2924.5,2924.4,0.4942]
[1764146238849,5.81047895,2924.5,2924.4,0.9564]
[1764146240087,5.81047895,2924.5,2924.4,0.4942]
[1764146240294,5.90337895,2924.5,2924.4,0.001]
[1764146240652,5.90697895,2924.5,2924.4,0.001]
[1764146240853,9.90899061,2924.5,2924.4,0.001]
[1764146241153,9.43327271,2924.5,2924.4,0.001]
[1764146241776,9.33597271,2924.5,2924.4,0.4932]
[1764146242485,6.71879661,2924.5,2924.4,0.001]
[1764146242857,6.81169661,2924.5,2924.4,0.001]
[1764146243798,8.29231742,2924.5,2924.4,0.001]
[1764146244695,0.405504,2924.4,2923.3,0.4622]
[1764146244863,0.405504,2923.7,2923.4,0.4622]
[1764146245062,0.217,2923.6,2923.2,0.4622]
[1764146245263,0.405504,2923.5,2923.2,0.4622]
[1764146245681,0.405504,2923.5,2923.4,0.4922]
[1764146245988,0.622504,2923.5,2923.4,0.4922]
[1764146246193,4.77184816,2923.5,2923.4,0.4922]
[1764146248206,4.77184816,2923.5,2923.4,0.9544]
[1764146249477,4.04306155,2923.5,2923.4,0.9544]
[1764146250212,7.4636191,2923.5,2923.1,0.6481]
[1764146250393,3.0226801,2923.3,2922.8,0.1821]
[1764146250593,3.0226801,2923.3,2922.8,0.6443]
[1764146250982,3.0226801,2923.3,2922.9,0.4622]
[1764146251914,3.0226801,2923.3,2923.2,0.4922]
[1764146252114,2.16159079,2923.3,2923.2,0.4922]
[1764146252287,4.04329557,2923.3,2923.2,0.9544]
[1764146252816,4.04329557,2923.3,2923.2,0.4922]
[1764146253016,4.04329557,2923.3,2923.2,0.9544]
[1764146253179,0.622504,2923.3,2923.2,0.9544]
[1764146253384,4.04329557,2923.3,2923.2,0.9544]
[1764146253685,4.04329557,2923.3,2923.2,0.4922]
[1764146253885,4.35890976,2923.3,2923.2,0.9544]
[1764146255912,7.77970133,2923.3,2922.9,0.001]
[1764146256114,4.04329557,2923.3,2923.2,0.4922]
[1764146256313,4.35873481,2923.3,2923.2,0.4922]
[1764146256487,4.35873481,2923.3,2923.2,0.9544]
[1764146257317,4.04329557,2923.3,2923.2,0.9544]
[1764146257515,4.04329557,2923.3,2923.2,0.4922]
[1764146257891,13.91033476,2923.3,2922.9,0.001]
[1764146258096,0.0045,2923.2,2922.9,0.001]
[1764146258619,0.405504,2923.1,2922.9,0.001]
[1764146259216,0.0929,2923.0,2922.9,0.001]
[1764146259797,0.405504,2923.1,2922.9,0.4932]
[1764146260102,0.217,2923.0,2922.9,0.001]
[1764146260306,0.217,2923.0,2922.9,0.4632]
[1764146260507,3.63814266,2923.0,2922.9,0.9554]
[1764146260816,3.63814266,2923.0,2922.9,0.4932]
[1764146261115,4.04364666,2923.0,2922.9,0.9554]
[1764146261318,4.04364666,2923.0,2922.9,0.001]
[1764146261319,4.35877906,2923.0,2922.9,0.001]
[1764146261517,4.04364666,2923.0,2922.9,0.9554]
[1764146262428,4.04364666,2923.0,2922.9,0.4932]
[1764146262926,4.04364666,2923.0,2922.9,0.9554]
[1764146263220,3.63814266,2923.0,2922.9,0.9554]
[1764146264330,4.04364666,2923.0,2922.9,0.4932]
[1764146264725,4.04364666,2923.0,2922.9,0.9759]
[1764146266104,0.217,2923.0,2922.9,0.9759]
[1764146266531,3.63734266,2923.0,2922.9,0.9759]
[1764146266829,6.66002276,2923.0,2922.9,0.4932]
[1764146267325,6.66002276,2923.0,2922.9,0.001]
[1764146267528,6.97520238,2923.0,2922.9,0.001]
[1764146267825,4.35802628,2923.0,2922.9,0.9455]
[1764146268032,4.04284666,2923.0,2922.9,0.9455]
[1764146268214,4.35807464,2923.0,2922.9,0.9455]
[1764146268898,4.35807464,2923.0,2922.9,0.001]
[1764146268899,4.42937464,2923.0,2922.9,0.001]
[1764146269635,4.62457464,2923.0,2922.9,0.9455]
[1764146269825,4.04364666,2923.0,2922.9,0.9455]
[1764146270207,4.3590337,2923.0,2922.9,0.4628]
[1764146270422,4.3590337,2923.0,2922.9,0.9455]
[1764146273131,0.93789104,2923.0,2922.9,0.9455]
[1764146273545,4.3590337,2923.0,2922.9,0.9455]
[1764146274109,4.3590337,2923.0,2922.9,0.4628]
[1764146274315,5.15792332,2923.0,2922.9,0.001]
[1764146275715,5.08662332,2923.0,2922.9,0.4628]
[1764146276210,5.08662332,2923.0,2922.9,0.9455]
[1764146276628,4.3590337,2923.0,2922.9,0.9455]
[1764146277428,4.3590337,2923.0,2921.2,0.1924]
[1764146277429,4.004504,2922.7,2921.2,0.1924]
[1764146277603,0.72559411,2922.8,2921.2,0.1924]
[1764146277604,2.6171761,2922.1,2921.4,0.4827]
[1764146277804,1.66623206,2922.0,2921.4,0.4827]
[1764146278017,0.405504,2921.8,2921.4,0.4827]
[1764146278309,0.405504,2921.9,2921.4,0.4827]
[1764146278534,0.405504,2921.9,2921.8,0.4618]
[1764146278736,4.14373785,2921.9,2921.8,0.4618]
[1764146279041,4.14373785,2921.9,2921.4,0.4827]
[1764146279042,7.56616846,2921.9,2921.4,0.4827]
[1764146279219,0.405504,2921.7,2921.4,0.4827]
[1764146279403,0.405504,2921.7,2921.6,0.4618]
[1764146279607,0.622504,2921.7,2921.6,0.4618]
[1764146280106,2.39071114,2921.7,2921.6,0.4618]
[1764146280305,2.87341114,2921.7,2921.6,0.4618]
[1764146280538,2.87341114,2921.7,2921.4,0.4827]
[1764146280539,2.14639005,2921.7,2921.4,0.4827]
[1764146280708,3.82851762,2921.5,2921.2,0.4827]
[1764146281039,3.82851762,2921.5,2921.4,0.4618]
[1764146281244,6.76127791,2921.5,2921.4,0.4618]
[1764146281429,4.8480748,2921.7,2921.4,0.9445]
[1764146281738,4.04528469,2921.7,2921.6,0.4618]
[1764146281915,0.93803356,2921.7,2921.6,0.4618]
[1764146282237,0.622504,2921.7,2921.6,0.9445]
[1764146282440,0.217,2921.7,2921.6,0.9445]
[1764146282744,3.82829531,2921.6,2921.2,0.4605]
[1764146282908,3.82829531,2921.6,2921.4,0.4605]
[1764146283239,3.82829531,2921.6,2921.5,0.463]
[1764146284209,7.25108662,2921.6,2921.2,0.4605]
[1764146284738,3.82829531,2921.6,2921.5,0.463]
[1764146284940,0.405504,2921.6,2921.5,0.463]
[1764146285129,0.217,2921.7,2921.5,0.9235]
[1764146285337,3.63967423,2921.7,2921.6,0.463]
[1764146285722,4.04517823,2921.7,2921.6,0.463]
[1764146286650,0.1106,2920.4,2918.1,0.1887]
[1764146286821,0.1106,2920.4,2919.1,0.1887]
[1764146286822,0.622504,2920.3,2919.1,0.1887]
[1764146287147,0.94196755,2920.3,2919.2,0.4605]
[1764146287344,1.02076641,2920.2,2919.3,0.03425478]
[1764146287643,0.405504,2920.1,2919.2,0.4605]
[1764146288013,0.405504,2920.2,2920.0,0.463]
[1764146288350,0.405504,2920.2,2919.2,0.4605]
[1764146288351,0.52948973,2920.2,2920.1,0.6517]
[1764146288647,0.17893392,2920.8,2920.1,0.6517]
[1764146288843,0.17893392,2920.8,2920.7,3.88683675]
[1764146289148,0.17893392,2920.8,2920.7,4.34733675]
[1764146290041,4.67004793,2922.2,2920.8,0.72559411]
[1764146290250,3.64108432,2922.2,2921.5,0.463]
[1764146290539,0.002,2921.6,2921.5,0.463]
[1764146290741,0.002,2921.6,2921.5,0.9235]
[1764146290955,0.002,2921.6,2921.5,1.49177306]
[1764146291114,0.002,2921.6,2921.0,0.4605]
[1764146291314,0.0012,2921.6,2921.1,1.02891773]
[1764146291739,0.0012,2921.6,2921.1,1.48941773]
[1764146291937,0.0012,2921.6,2921.5,0.463]
[1764146293358,0.0012,2921.6,2921.5,0.9235]
[1764146294755,0.0012,2921.6,2921.5,4.34639919]
[1764146294943,0.0012,2921.6,2921.5,0.9235]
[1764146295142,0.0012,2921.6,2921.5,4.34639919]
[1764146295760,0.0012,2921.6,2921.5,0.9235]
[1764146296733,0.0012,2921.6,2921.5,3.88589919]
[1764146296929,0.0012,2921.6,2921.5,0.463]
[1764146297136,0.0012,2921.6,2921.5,0.9296]
[1764146297366,0.0012,2921.6,2921.5,4.35249919]
[1764146297558,0.0012,2921.6,2921.5,4.57149919]
[1764146297952,0.0012,2921.6,2921.5,4.35249919]
[1764146298450,0.0012,2921.6,2921.5,0.9296]
[1764146298654,0.0012,2921.6,2921.5,4.35249919]
[1764146299336,0.0012,2921.6,2920.8,3.42366348]
[1764146299538,0.0012,2921.6,2921.5,0.4561]
[1764146300851,0.94,2921.6,2920.8,0.94459411]
[1764146301043,3.82840319,2921.5,2920.9,0.219]
[1764146301239,3.82840319,2921.5,2920.8,0.4666]
[1764146301453,3.82840319,2921.5,2920.2,3.42442298]
[1764146301454,3.35605719,2921.4,2920.2,3.42442298]
[1764146301654,0.445,2920.9,2920.2,3.42442298]
[1764146301965,1.59679811,2921.3,2920.3,0.4666]
[1764146302333,1.13109811,2921.3,2920.3,0.4666]
[1764146302528,0.405504,2921.1,2920.3,0.4666]
[1764146302967,3.82897934,2921.1,2920.4,3.42418846]
[1764146303661,3.82897934,2921.1,2920.3,4.10987527]
[1764146304559,0.405504,2921.1,2920.3,4.10987527]
[1764146305165,3.8288763,2921.1,2920.3,4.10987527]
[1764146305963,3.8288763,2921.1,2920.3,3.89087527]
[1764146306171,7.2522486,2921.1,2920.3,4.10987527]
[1764146306367,0.871204,2921.1,2920.3,4.10987527]
[1764146306550,0.405504,2921.2,2920.4,0.4666]
[1764146306964,4.14873426,2921.3,2920.4,0.4666]
[1764146307371,7.57187441,2921.3,2920.5,3.42407122]
[1764146307558,8.03757441,2921.3,2920.4,4.10973534]
[1764146308076,0.405504,2921.2,2920.1,3.613239]
[1764146308277,0.871204,2921.2,2920.2,0.4666]
[1764146308469,1.090204,2921.2,2920.2,0.4666]
[1764146309274,0.219,2921.2,2920.2,0.4666]
[1764146309581,3.64231688,2921.2,2920.4,0.001]
[1764146309771,3.64231688,2921.2,2920.5,0.219]
[1764146309968,3.64231688,2921.2,2920.5,0.6856]
[1764146310144,0.219,2921.2,2920.5,0.6856]
[1764146310346,0.0012,2921.6,2921.1,0.4561]
[1764146310549,3.42400209,2921.6,2921.2,0.4561]
[1764146310952,0.0012,2921.6,2921.5,0.4561]
[1764146311482,0.0012,2921.6,2921.5,0.9227]
[1764146311647,0.0012,2921.6,2921.5,4.34559919]
[1764146312670,0.0012,2921.6,2921.5,0.4561]
[1764146313970,0.0012,2921.6,2921.5,3.87899919]
[1764146314281,0.0012,2921.6,2921.5,4.34559919]
[1764146314480,0.0012,2921.6,2921.0,3.42345529]
[1764146314481,0.0012,2921.6,2921.2,3.42320154]
[1764146314679,2.6908115,2921.6,2921.2,3.42320154]
[1764146314893,2.6908115,2921.6,2921.1,3.42328509]
[1764146315453,2.6908115,2921.6,2921.5,0.4561]
[1764146315655,0.0012,2921.6,2921.1,0.94459411]
[1764146315901,0.0004,2921.6,2921.1,4.36790956]
[1764146316077,0.0004,2921.6,2921.1,7.79127746]
[1764146316295,0.0004,2921.6,2921.2,0.4666]
[1764146316954,0.0004,2921.6,2921.1,4.36790956]
[1764146317153,0.0004,2921.6,2921.1,7.79127746]
[1764146317368,0.0004,2921.6,2921.1,8.25787746]
[1764146317768,0.0004,2921.6,2921.1,7.79127746]
[1764146317969,0.0004,2921.6,2921.5,0.4561]
[1764146318588,0.0004,2921.6,2921.2,0.219]
[1764146319087,0.0004,2921.6,2921.5,0.4561]
[1764146320202,0.0004,2921.6,2921.5,3.87899919]
[1764146320709,0.0004,2921.6,2921.5,4.34559919]
[1764146320856,0.0004,2921.6,2921.5,4.37982818]
[1764146321495,0.0004,2921.6,2921.5,5.10542229]
[1764146321689,0.0004,2921.6,2921.5,5.2901933]
[1764146322843,0.0004,2921.6,2921.5,5.0711933]
[1764146323350,0.0004,2921.6,2921.5,4.8235933]
[1764146323531,0.0004,2921.6,2921.1,6.15331399]
[1764146323532,0.4735,2921.6,2921.1,6.15331399]
[1764146323847,0.4735,2921.6,2921.1,9.79568189]
[1764146323848,0.0004,2921.6,2921.1,9.79568189]
[1764146324050,0.0004,2921.6,2921.1,10.27648189]
[1764146324409,0.0004,2921.6,2921.1,9.79568189]
[1764146324717,0.0004,2921.6,2921.2,0.219]
[1764146325111,0.498,2921.6,2921.2,0.219]
[1764146325411,0.498,2921.6,2921.1,6.15331399]
[1764146325605,0.498,2921.6,2921.1,6.37231399]
[1764146325810,0.498,2921.6,2921.1,0.219]
[1764146326834,3.92080016,2921.6,2920.8,0.72559411]
[1764146327140,3.92080016,2921.6,2920.9,0.219]
[1764146327835,0.498,2921.6,2920.9,0.219]
[1764146328039,0.498,2921.6,2921.0,0.001]
[1764146328438,0.0004,2921.6,2921.0,0.001]
[1764146328639,0.0004,2921.6,2921.0,0.4818]
[1764146329341,0.0004,2921.6,2921.1,3.4233679]
[1764146329529,0.0004,2921.6,2921.0,3.90523883]
[1764146329728,0.0004,2921.6,2921.0,4.12423883]
[1764146330037,0.0004,2921.6,2921.0,7.54772393]
[1764146330226,0.0004,2921.6,2921.0,4.12423883]
[1764146330552,0.0004,2921.6,2921.0,3.90523883]
[1764146330753,0.0004,2921.6,2921.0,4.12423883]
[1764146330911,0.0004,2921.6,2921.0,4.12426079]
[1764146331110,0.4795,2921.1,2921.0,0.001]
[1764146333629,0.219,2921.5,2921.0,0.4839]
[1764146333856,0.7166,2921.5,2921.0,0.4839]
[1764146334072,4.13959257,2921.5,2921.0,0.4839]
[1764146334556,0.7166,2921.5,2921.0,0.4839]
[1764146335182,0.4976,2921.4,2921.0,0.001]
[1764146335668,0.4795,2921.1,2921.0,0.001]
[1764146336045,0.4976,2921.4,2921.0,0.001]
[1764146336243,0.4795,2921.1,2921.0,0.001]
[1764146336951,0.9771,2921.1,2921.0,0.001]
[1764146338484,0.4795,2921.1,2921.0,0.001]
[1764146339754,0.7166,2921.5,2921.0,0.4839]
[1764146339958,1.54087419,2921.4,2921.0,0.4839]
[1764146340160,0.4976,2921.4,2921.0,0.4839]
[1764146340359,0.4795,2921.1,2921.0,0.001]
[1764146340763,0.4787,2921.1,2921.0,0.001]
[1764146341153,0.9763,2921.1,2921.0,0.001]
[1764146341353,1.381804,2921.1,2921.0,0.001]
[1764146341672,4.8051719,2921.1,2921.0,0.001]
[1764146342461,1.381804,2921.1,2921.0,0.001]
[1764146342982,0.884204,2921.1,2921.0,0.001]
[1764146343284,9.17087798,2921.1,2921.0,0.001]
[1764146344181,5.81477797,2921.1,2921.0,0.001]
[1764146345283,5.35167797,2921.1,2921.0,0.001]
[1764146345483,1.92831007,2921.1,2921.0,0.001]
[1764146345679,1.04410607,2921.1,2921.0,0.5005]
[1764146345880,3.42303597,2921.4,2921.0,0.5005]
[1764146346059,1.0430636,2921.3,2921.1,0.4995]
[1764146346263,0.219,2921.5,2921.1,0.4995]
[1764146346264,4.36754416,2921.5,2921.1,0.4995]
[1764146346480,0.72734797,2921.4,2921.1,0.4568]
[1764146346678,0.0004,2921.6,2921.3,0.4995]
[1764146346889,1.04348219,2921.6,2921.3,0.4995]
[1764146347062,0.7277821,2921.6,2921.3,0.4995]
[1764146347387,0.4781,2921.4,2921.0,0.001]
[1764146347590,3.13097197,2921.2,2921.0,0.001]
[1764146347893,0.4781,2921.1,2921.0,0.001]
[1764146348394,2.68947197,2921.2,2921.0,0.001]
[1764146348891,6.11273357,2921.2,2921.0,0.001]
[1764146349064,2.68947197,2921.2,2921.0,0.001]
[1764146349760,6.11272877,2921.2,2921.0,0.001]
[1764146349958,2.68947197,2921.2,2921.0,0.001]
[1764146350186,0.4781,2921.1,2921.0,0.001]
[1764146351386,3.42325089,2921.2,2921.0,0.001]
[1764146351589,0.4781,2921.1,2921.0,0.001]
[1764146352503,3.42289919,2921.5,2921.0,0.001]
[1764146352801,1.44977569,2921.4,2921.0,0.001]
[1764146353093,0.868604,2921.4,2921.0,0.001]
[1764146353299,0.4631,2921.3,2921.0,0.001]
[1764146353874,0.4781,2921.1,2921.0,0.001]
[1764146354184,0.4631,2921.3,2921.0,0.001]
[1764146354391,3.42313353,2921.3,2921.0,0.4642]
[1764146354802,3.89853353,2921.3,2921.0,0.001]
[1764146355572,0.4699,2921.1,2921.0,0.001]
[1764146356390,0.624504,2921.4,2921.0,0.001]
[1764146356391,3.64203391,2921.4,2921.0,0.4642]
[1764146356585,1.04476728,2921.3,2921.0,0.4642]
[1764146356894,0.72855148,2921.3,2921.0,0.4642]
[1764146357089,3.64203391,2921.4,2921.0,0.4642]
[1764146357284,1.04471777,2921.3,2921.0,0.4642]
[1764146357486,0.72854048,2921.3,2921.0,0.4642]
[1764146359000,4.15167459,2921.3,2921.0,0.4642]
[1764146359304,3.42313411,2921.3,2921.0,0.4642]
[1764146361976,3.64206994,2921.4,2921.0,0.4642]
[1764146362175,1.04550048,2921.3,2921.0,0.4642]
[1764146362389,0.72906554,2921.3,2921.0,0.4642]
[1764146363077,0.72906554,2921.3,2921.2,0.4632]
[1764146363276,4.46864948,2921.3,2921.2,0.4632]
[1764146363583,4.46864948,2921.3,2921.0,0.001]
[1764146363906,3.42313353,2921.3,2921.0,0.001]
[1764146364110,3.64204765,2921.4,2921.0,0.001]
[1764146364280,1.04560986,2921.3,2921.0,0.001]
[1764146364479,0.73113172,2921.3,2921.0,0.001]
[1764146364905,1.20653172,2921.3,2921.0,0.001]
[1764146365080,4.62977769,2921.3,2921.0,0.001]
[1764146365279,3.90064597,2921.3,2921.0,0.001]
[1764146365581,0.4699,2921.1,2921.0,0.001]
[1764146366178,3.42444597,2921.3,2921.0,0.001]
[1764146366378,1.04570071,2921.2,2921.0,0.001]
[1764146366590,0.72921234,2921.2,2921.0,0.001]
[1764146367905,3.42444597,2921.3,2921.0,0.001]
[1764146368112,0.0012,2921.3,2921.2,0.4632]
[1764146368515,0.0012,2921.3,2921.2,1.1801]
[1764146368896,0.0012,2921.3,2921.2,2.09026641]
[1764146369220,0.0012,2921.3,2921.2,6.23911123]
[1764146369697,0.0012,2921.3,2921.2,6.27334373]
[1764146369887,0.0004,2921.6,2921.2,13.11984515]
[1764146370093,0.0004,2921.6,2921.5,0.4632]
[1764146370636,0.218,2922.7,2921.5,0.4632]
[1764146370637,0.91016641,2923.2,2921.5,1.367604]